Cogmind - Beta 15 *** ADVENTURER MODE // 2025.09.04 @ 15:57:13 // Winter2019/RPGLIKE Player: [THREAT] Result: Destroyed by S-10 Pest with Light Assault Rifle Performance ------------- Evolutions (2) 1000 Regions Visited (4) 800 Robots Destroyed (44) 220 Value Destroyed (742) 742 Prototype IDs (2) 40 Alien Tech Used (0) 0 Bonus (0) 0 TOTAL SCORE: 2802 Bonus ------- None Cogmind --------- Core Integrity 0/600 Matter 400/400 Energy 158/170 System Corruption 0% Temperature Warning (358) Movement Treading (160) Location -8/Materials Parts ------- > --- POWER (1) -------- Makeshift Power Source > --- PROPULSION (1) --- Light Treads > --- UTILITY (5) ------ Heat Sink Medium Matter Pod Improved Terrain Scanner Seismic Detector Hardened Medium Armor Plating > --- WEAPON (1) ------- Beam Cannon > --- INVENTORY (4) ---- Subdweller Monowheel Subdweller Optics Subdweller Laser Improved Datajack Peak State ------------ > --- POWER ------------ Makeshift Power Source > --- PROPULSION ------- Subdweller Monowheel > --- UTILITY ---------- Heat Sink Medium Matter Pod Subdweller Optics Improved Terrain Scanner Seismic Detector > --- WEAPON ----------- Subdweller Laser > --- INVENTORY -------- Light Treads Beam Cannon Scrap Shield Fragment [Rating: 16] Favorites ----------- Power Ion Engine Engine Ion Engine Propulsion Light Treads Treads Light Treads Wheel Subdweller Monowheel Utility Seismic Detector Device Seismic Detector Storage Medium Matter Pod Protection Light Armor Plating Weapon Beam Cannon Energy Gun EM Pulse Gun Energy Cannon Beam Cannon Build | -11 -10 -10 -10 -8 ------- Run | Yrd Mat Min Sub Mat Slots Evolved 4 | 4 . . . . Power . | . . . . . Propulsion . | . . . . . Utility 4 | 4 . . . . Weapon . | . . . . . Parts Attached 16 | 6 5 . 4 1 Power 4 | 1 2 . 1 . Engine 4 | 1 2 . 1 . Core . | . . . . . Reactor . | . . . . . Propulsion 2 | 1 . . 1 . Treads 1 | 1 . . . . Leg . | . . . . . Wheel 1 | . . . 1 . Hover . | . . . . . Flight . | . . . . . Utility 7 | 3 2 . 1 1 Device 4 | 2 1 . 1 . Storage 1 | 1 . . . . Processor . | . . . . . Hackware . | . . . . . Protection 2 | . 1 . . 1 Artifact . | . . . . . Weapon 3 | 1 1 . 1 . Energy Gun 2 | 1 . . 1 . Energy Cannon 1 | . 1 . . . Ballistic Gun . | . . . . . Ballistic Cannon . | . . . . . Launcher . | . . . . . Special Weapon . | . . . . . Impact Weapon . | . . . . . Slashing Weapon . | . . . . . Piercing Weapon . | . . . . . Special Melee Weapon . | . . . . . Unidentified Prototypes . | . . . . . Corrupted Parts 1 | . 1 . . . System Corruption 1 | . 1 . . . Parts Lost 1 | . . . 1 . Power . | . . . . . Propulsion . | . . . . . Utility 1 | . . . 1 . Weapon . | . . . . . Highest Loss Streak 1 | . . . 1 . To Critical Strikes . | . . . . . Average Backups . | . . . 1 3 Power . | . . . . . Propulsion . | . . . . 1 Utility . | . . . . . Weapon . | . . . . 1 Tool/Special . | . . . . . Unused Backups 1 | . . . . 1 Power . | . . . . . Propulsion . | . . . . . Utility . | . . . . . Weapon . | . . . . . Tool/Special 1 | . . . . 1 Average Slot Usage (%) 97 | . 93 100 99 100 Engine 12 | . 12 12 12 12 Treads 10 | . 12 12 8 12 Wheel 1 | . . . 3 . Device 38 | . 31 37 45 38 Storage 12 | . 12 12 12 12 Protection 8 | . 11 12 3 10 Energy Gun 5 | . 7 . 7 . Energy Cannon 6 | . 4 12 4 12 Peak Build Rating 16 | 8 10 10 16 15 Average Rating 10 | 4 9 10 12 14 On Entrance 8 | . 8 10 10 14 Naked Turns . | . . . . . Heaviest Build 20 | 9 16 16 16 20 Greatest Support 25 | 20 20 20 25 25 Greatest Overweight (x) 1 | 1 . . 1 . Average Overweight (x) . | . . . . . Largest Inventory Capacity 4 | . . 3 4 4 Average Capacity 1 | . . 1 3 4 Most Carried 4 | . . . 3 4 Average Carried 1 | . . . 1 3 Final Capacity 4 | . . 3 4 4 Final Carried 4 | . . . 3 4 Class Distribution -------------------- 74% | Scavenger-Mutant 25% | Mutant Dominant Class ---------------- Scavenger-Mutant | -10/Materials Scavenger-Mutant | -10/Mines Scavenger-Mutant | -10/Subcaves Scavenger-Mutant | -8/Materials Resources | -11 -10 -10 -10 -8 ----------- Run | Yrd Mat Min Sub Mat Matter Collected 478 | 302 106 . 41 29 Remotely . | . . . . . Salvage Created 1305 | 292 621 . 202 190 Parts 109 | 32 49 . 18 10 Haulers Intercepted 1 | . 1 . . . Recyclers Shooed 1 | . 1 . . . Parts Field Recycled . | . . . . . Retrieved Matter . | . . . . . Parts Self-Destructed 7 | . . . 7 . Prevented . | . . . . . Kills | -11 -10 -10 -10 -8 ------- Run | Yrd Mat Min Sub Mat Combat Hostiles Destroyed 18 | . 7 . 7 4 Guns 10 | . 5 . 5 . Cannons 6 | . . . 2 4 AOE 2 | . 2 . . . Classes Destroyed 10 | 3 4 . 3 . Worker 5 | 2 2 . . 1 Builder 4 | . 3 . . 1 Tunneler 9 | 9 . . . . Hauler 1 | . 1 . . . Recycler 3 | 1 2 . . . Watcher 4 | . 3 . . 1 Swarmer 6 | . . . 3 3 Grunt 7 | . 7 . . . Sentry 2 | . . . 1 1 Subdweller 3 | . . . 3 . Best Kill Streak 4 | 4 4 . 3 4 Combat Bots Only 4 | . 3 . 3 4 Max Kills in Single Turn 1 | 1 1 . 1 1 Gunslinging . | . . . . . Exploded 1 | . 1 . . . Melee . | . . . . . Uniques/NPCs Destroyed . | . . . . . Combat | -11 -10 -10 -10 -8 -------- Run | Yrd Mat Min Sub Mat Hostile Shots Fired 163 | . 46 . 87 30 Missed 57 | . 22 . 27 8 Hits 106 | . 24 . 60 22 Projectile 106 | . 24 . 60 22 Critical Strikes 1 | . . . 1 . Damage Taken 1298 | . 203 . 942 153 Core 993 | . 131 . 750 112 Absorbed by Shields . | . . . . . Redirected to Core 678 | . 115 . 488 75 Ignored by Resistances 411 | . 62 . 298 51 Core Remaining (%) 59 | 100 . . 18 . Volleys Fired 191 | 23 85 . 56 27 Largest 1 | 1 1 . 1 1 Hottest 60 | 40 60 . 60 60 Shots Fired 190 | 23 85 . 55 27 Gun 114 | 23 65 . 26 . Cannon 76 | . 20 . 29 27 Launcher . | . . . . . Special . | . . . . . Kinetic . | . . . . . Thermal 102 | . 20 . 55 27 Explosive . | . . . . . Electromagnetic 88 | 23 65 . . . Robot Hit Streak 25 | 21 22 . 25 11 Robot Miss Streak 4 | 1 3 . 2 4 Penetration Max . | . . . . . Secondary Targets . | . . . . . Shots Hit Robots 141 | 21 55 . 47 18 Core Hits 55 | 12 25 . 11 7 Critical Kills . | . . . . . Critical Parts Destroyed . | . . . . . Critical Strikes 1 | . 1 . . . Corrupt 1 | . 1 . . . Melee Attacks . | . . . . . Impact . | . . . . . Slashing . | . . . . . Piercing . | . . . . . Sneak Attacks . | . . . . . Combat Hostiles . | . . . . . Follow-up Attacks . | . . . . . Damage Inflicted 2500 | 334 969 . 821 376 Guns 1325 | 289 684 . 352 . Cannons 996 | . 158 . 469 369 Explosions 170 | 45 125 . . . Melee . | . . . . . Ramming 9 | . 2 . . 7 Kinetic . | . . . . . Thermal 1518 | 45 283 . 821 369 Explosive . | . . . . . Electromagnetic 973 | 289 684 . . . Impact . | . . . . . Slashing . | . . . . . Piercing . | . . . . . Highest Corruption 1 | . 1 1 1 . Average Corruption 1 | . 1 1 1 . Corruption Purged . | . . . . . Corruption Blocked . | . . . . . Effects 11 | . 2 2 7 . Message Errors 2 | . . 1 1 . Matter Fused 2 | . 1 . 1 . Heat Flow Errors 2 | . . 1 1 . Energy Discharges 2 | . 1 . 1 . Data Loss (minor) 1 | . . . 1 . Data Loss (major) 2 | . . . 2 . Overload Shots . | . . . . . Overflow Damage 4 | . 4 . . . Projectiles 4 | . 4 . . . Explosions . | . . . . . Melee . | . . . . . Knockbacks . | . . . . . Impact . | . . . . . Kinetic . | . . . . . Secondary . | . . . . . Self-Inflicted Damage . | . . . . . Shots . | . . . . . Rammed 2 | . 1 . . 1 Targets Rammed 3 | . 1 . . 2 Kicked . | . . . . . Crushed 1 | . . . . 1 Highest Temperature 358 | 20 138 205 68 358 Average Temperature 56 | 17 27 178 46 120 Received Heat Transfer 471 | . 147 . 306 18 Effects 1 | . . . . 1 Energy Bleed 1 | . . . . 1 Siege Activations . | . . . . . Martial Activations . | . . . . . Shielding Activations . | . . . . . Robots Disrupted . | . . . . . Combat Hostiles . | . . . . . Robots Corrupted . | . . . . . Combat Hostiles . | . . . . . Parts Fried 4 | 2 2 . . . Impact Corruptions . | . . . . . Robots Melted . | . . . . . Combat Hostiles . | . . . . . Parts Melted 3 | . . . . 3 Heat Transferred 2710 | 50 533 . 1424 703 Parts Sabotaged . | . . . . . Parts Stolen . | . . . . . Parts Stripped . | . . . . . Power Chain Reactions 4 | 1 3 . . . Alert | -11 -10 -10 -10 -8 ------- Run | Yrd Mat Min Sub Mat Maximum Alert Level . | . . . . . Low Security (%) 100 | 100 100 100 . 100 Level 1 . | . . . . . Level 2 . | . . . . . Level 3 . | . . . . . Level 4 . | . . . . . Level 5 . | . . . . . High Security . | . . . . . Max Security . | . . . . . Peak Influence 97 | 20 97 . . 90 Initial 5 | . 5 . . . Average 18 | 2 31 . . 4 Influence Increases 588 | 60 307 . 90 131 Destroy 0b10 Robot/C 300 | . 140 . 80 80 Destroy 0b10 Robot/NC 130 | 60 55 . . 15 Destroy Leader 70 | . 38 . 10 22 Successful Hack 38 | . 34 . . 4 Disable Machine 36 | . 27 . . 9 Destroy Structure 14 | . 13 . . 1 Influence Decreases 498 | 50 317 . 90 41 Entered New Map 5 | . 5 . . . Time Decay 493 | 50 312 . 90 41 Squads Dispatched 3 | . 2 . . 1 Investigation 2 | . 2 . . . Extermination . | . . . . . Reinforcement 1 | . . . . 1 Assault . | . . . . . Garrison . | . . . . . Intercept . | . . . . . Searches Triggered . | . . . . . Construction Impeded . | . . . . . Haulers Reinforced . | . . . . . Active Scanning Responses . | . . . . . Cargo Convoy Interrupts . | . . . . . Stealth | -11 -10 -10 -10 -8 --------- Run | Yrd Mat Min Sub Mat Distress Signals 1 | . 1 . . . Communications Jammed . | . . . . . Distress Signals . | . . . . . Times Spotted 31 | . 13 . 10 8 Peak Tracking Total 7 | . 4 . 3 7 Tactical Retreats . | . . . . . Traps | -11 -10 -10 -10 -8 ------- Run | Yrd Mat Min Sub Mat Traps Triggered . | . . . . . Indirectly . | . . . . . Trap Hack Attempts . | . . . . . Triggered . | . . . . . Disarmed . | . . . . . Reprogrammed 4 | . 4 . . . Reused . | . . . . . Traps Extracted . | . . . . . Installed . | . . . . . Triggered . | . . . . . Machines | -11 -10 -10 -10 -8 ---------- Run | Yrd Mat Min Sub Mat Machines Disabled 4 | . 3 . . 1 Max in Single Turn 1 | . 1 . . 1 Garrison Access 1 | . . . . 1 Machines Repaired . | . . . . . Machines Dismantled . | . . . . . Machines Sabotaged . | . . . . . Overloaded Fab Kills . | . . . . . Hacking | -11 -10 -10 -10 -8 --------- Run | Yrd Mat Min Sub Mat Machines Accessed 8 | . 5 . . 3 Terminals 6 | . 5 . . 1 Fabricators . | . . . . . Repair Stations . | . . . . . Recycling Units 1 | . . . . 1 Scanalyzers . | . . . . . Garrison Access 1 | . . . . 1 Total Hacks 20 | . 13 . . 7 Successful 12 | . 9 . . 3 Failed 8 | . 4 . . 4 Catastrophic 1 | . 1 . . . Database Lockouts . | . . . . . Manual 14 | . 12 . . 2 Terminals 15 | . 13 . . 2 Fabricators . | . . . . . Repair Stations . | . . . . . Recycling Units 1 | . . . . 1 Scanalyzers . | . . . . . Garrison Access 4 | . . . . 4 Terminal Hacks 4 | . 4 . . . Prototype ID Bank 1 | . 1 . . . Branch Access Points 1 | . 1 . . . Disarm Traps 1 | . 1 . . . Reprogram Traps 1 | . 1 . . . Fabricator Hacks . | . . . . . Repair Station Hacks . | . . . . . Recycling Unit Hacks 1 | . . . . 1 Report Inventory 1 | . . . . 1 Scanalyzer . | . . . . . Garrison Access Hacks 1 | . . . . 1 Seal Access 1 | . . . . 1 Unauthorized Hacks 6 | . 5 . . 1 Terminals 6 | . 5 . . 1 Botnet 6 | . 5 . . 1 Fabricators . | . . . . . Repair Stations . | . . . . . Recycling Units . | . . . . . Scanalyzers . | . . . . . Garrison Access . | . . . . . Data Cores Recovered . | . . . . . Used . | . . . . . Hacking Detections 4 | . 2 . . 2 Full Trace Events 1 | . 1 . . . Feedback Events . | . . . . . Feedback Blocked . | . . . . . Robot Schematics Acquired . | . . . . . Robots Built . | . . . . . Authchips . | . . . . . Time . | . . . . . Total Robot Build Rating . | . . . . . Part Schematics Acquired . | . . . . . Parts Built . | . . . . . Authchips . | . . . . . Time . | . . . . . Total Part Build Rating . | . . . . . Parts Repaired . | . . . . . Time . | . . . . . Parts Recycled . | . . . . . Recycled Matter . | . . . . . Retrieved Matter . | . . . . . Retrieved Components . | . . . . . Parts Scanalyzed . | . . . . . Part Schematics Acquired . | . . . . . Parts Damaged . | . . . . . Bothacking | -11 -10 -10 -10 -8 ------------ Run | Yrd Mat Min Sub Mat Used RIF Installer . | . . . . . Robots Hacked . | . . . . . Non-combat . | . . . . . Combat . | . . . . . Robot Hacks Applied . | . . . . . Relay Couplers Released . | . . . . . Fabnet Peak Effective % . | . . . . . Robots Rewired . | . . . . . Allies Hacked . | . . . . . Hacks Repelled . | . . . . . Allies | -11 -10 -10 -10 -8 -------- Run | Yrd Mat Min Sub Mat Total Allies . | . . . . . Largest Group . | . . . . . Highest-Rated Group . | . . . . . Highest-Rated Ally . | . . . . . Total Orders . | . . . . . Ally Attacks . | . . . . . Total Damage . | . . . . . Kills . | . . . . . Allies Corrupted . | . . . . . Allies Melted . | . . . . . Intel | -11 -10 -10 -10 -8 ------- Run | Yrd Mat Min Sub Mat Active Infowar (turns) 2029 | 118 793 87 706 325 Optics 424 | . . . 424 . Terrain 1956 | 45 793 87 706 325 Seismic 2029 | 118 793 87 706 325 Robot Analysis Total . | . . . . . Derelict Logs Recovered . | . . . . . Drone Launches . | . . . . . Drone Recoveries . | . . . . . Exploration | -11 -10 -10 -10 -8 ------------- Run | Yrd Mat Min Sub Mat Turns Passed 2141 | 230 793 87 706 325 Spaces Moved 1024 | 117 369 7 376 155 Core 27 | 15 . . 12 . Treads 848 | 102 369 7 215 155 Legs . | . . . . . Wheels 149 | . . . 149 . Hover . | . . . . . Flight . | . . . . . Fastest Speed 50 | 50 160 160 100 160 Average Speed 150 | 148 160 160 138 160 Slowest Speed 160 | 160 160 160 160 160 Overloaded Moves . | . . . . . Propulsion Burnouts . | . . . . . Robots Hopped . | . . . . . Potential Cave-ins . | . . . . . Cave-ins Triggered . | . . . . . Exploration Rate (%) 19 | 4 47 4 24 16 Regions Visited 4 Branch Regions 2 Pre-discovered Areas . | . . . . . Known Exits Taken 1 | . 1 . . . Unknown Exits Taken 3 | 1 . 1 1 . Scrap Searched 2 | . . . 2 . Spaces Dug . | . . . . . Terrain Destroyed 14 | 1 13 . . . Melee . | . . . . . Projectile . | . . . . . AOE 14 | 1 13 . . . Terrain Rammed . | . . . . . Walls Destroyed . | . . . . . Machines Disabled . | . . . . . Actions | -11 -10 -10 -10 -8 --------- Run | Yrd Mat Min Sub Mat Total 1424 | 147 485 83 504 205 Wait 162 | 2 16 77 50 17 Move 1020 | 116 368 6 375 155 Hop . | . . . . . Pick Up 6 | . . . 4 2 Fast Attach 8 | 6 2 . . . Attach 1 | . . . 1 . Detach . | . . . . . Swap 9 | . 3 . 5 1 Drop 2 | . 1 . . 1 Fire 191 | 23 85 . 56 27 Melee . | . . . . . Ram . | . . . . . Kick . | . . . . . Crush 3 | . 1 . . 2 Escape Stasis . | . . . . . Rewire . | . . . . . Trap . | . . . . . Miscellaneous 22 | . 9 . 13 . Route ------- -11/Scrapyard -10/Materials (discovered 3 exits: [*Mat] / *Min x2) -10/Mines -10/Subcaves -8/Materials History --------- Turn | Location | Event 1 | -11/Scrapyard | Upgraded with Utility slot (x4) 20 | -11/Scrapyard | Discovered new exit (range 16) 231 | -11/Scrapyard | Entered Materials 316 | -10/Materials | Build established: Mutant 487 | -10/Materials | Discovered new exit (range 7) 862 | -10/Materials | Build established: Scavenger-Mutant 875 | -10/Materials | Discovered new exit (range 12) 906 | -10/Materials | Identified exit to Mines 1024 | -10/Materials | Entered Mines 1026 | -10/Mines | Reached level 2 1096 | -10/Mines | Discovered new exit (range 5) 1111 | -10/Mines | Entered Subcaves 1112 | -10/Subcaves | Approached by a straggling Scientist 1659 | -10/Subcaves | Reached level 3 1753 | -10/Subcaves | Discovered new exit (range 17) 1792 | -10/Subcaves | A Subdweller sparked back to life 1792 | -10/Subcaves | A Subdweller sparked back to life 1806 | -10/Subcaves | Core integrity fell below 50% 1817 | -10/Subcaves | Entered Materials 1818 | -8/Materials | Core integrity fell below 50% 1818 | -8/Materials | Core integrity fell below 20% 1819 | -8/Materials | Reached level 4 1819 | -8/Materials | Reached level 5 2120 | -8/Materials | Reached level 6 2142 | -8/Materials | Destroyed by S-10 Pest with Light Assault Rifle Last Messages --------------- K-01 Serf destroyed. K-01 Serf collects debris. K-01 Serf cleans the Recycling Unit. K-01 Serf collects debris. K-01 Serf cleans the Recycling Unit. K-01 Serf cleans the Electrolysis Chamber. K-01 Serf collects debris. Upgraded: Ranged Accuracy (+5) Upgraded: TH Damage % (+20) Reached level 6. S-10 Pest destroyed. ALERT: Hostiles spotted, dispatching reinforcements to Terminal M005. Lgt. Treads melted. Lgt. Armor Plating melted. Heat Sink melted. Y-45 Defender destroyed. Overheating: Energy bleed (-27). Destroyed Flight Unit. S-10 Pest destroyed. Map ----- +----------------------------------------------------+ | ?????????????????????????????????????????????????? | | ?????????????????????????????????????????????????? | | ?????????????????????????????????????????????????? | | ?????????????????????????????????????????????????? | | ?????????????????????????????????????????????????? | | ?????????????????????????????????????????????????? | | ?????????????????????????????????????????????????? | | ?????????????????????????????????????????????????? | | ?????????????????????????????????????????????????? | | ?????????????????????????????????????????????????? | | ???? ???????????????? ???????????????????????? | | ??# ???????????????# #??????????????????????? | | ??# #??????????????# ??????????????????????? | | ??+ #?#????????????# ??????????????????????? | | ??# #??#???????????# ??????????????????????? | | ??# #???????"??????# ?????????????????????? | | ??# #????#??????? ?# ??????????????????????? | | ??# % #????????"?????# ??????????????????????? | | ??# ##?????????????# #??????????????????????? | | ??# #??????????????# #?????#????????????????? | | ??# ##?????#???????# #??????????????????????? | | ??# ###??????#??#??# w #??????????????????????? | | ??# ##?#####??#????# #??????????????????????? | | ?## ##?#"""#??#????# #??"?? ??????????????? | | ??# ####"Y"######### #???" #????????????? | | ### @##""" # ???????????? | | =%s/ + ???????????? | | =## "" #????????????? | | !#?? T" #????????????? | | ### #??? "" # ???????????? | | # #????? #????????????? | | # """ ########%#??????####????????????? | | " # """ #??????#%#??????????????????????? | | ###### """ #?#????#=#????????#??#??????????? | | " # # #???? ?#=#??????????????????????? | | " # + #??????? #??????????????????????? | | " # # #? ??? ? ??????????????????????? | | " # # "T" #???????+#??????????????????????? | | " # # """ #?? ? ?? ???????????????????????? | | # # #??????? ??????#????????????????? | | # # #????#?? ???????????????????????? | | ### + ####### #????????"??????????????????????? | | ??# ##??????? ???????????????????????????????? | | ??######??????#?###??????????????????????????????? | | #?#???#????????#?????????????????????????????????? | | ?????#???????????????????????????????????????????? | | ??????????#??????????????????????????????????????? | | | | | | | +----------------------------------------------------+ Best States ------------- Heat Dissipation 35 Energy Generation 15 Energy Capacity 250 Matter Stores 400 Matter Capacity 400 Sight Range 21 Terrain Scan Range 16 Terrain Scan Density 10 Armor Coverage 225 Resistance: KI 20 Resistance: TH 25 Resistance: EX 20 Resistance: EM 20 Resistance: I 20 Resistance: S 20 Resistance: P 20 Evasion (%) 40 Recoil Reduction 1 Offensive Hacking 10 Item Schematics ----------------- None Robot Schematics ------------------ None Fabricated ------------ Nothing Repaired ---------- Nothing Alien Tech Used ----------------- None Achievements -------------- None Challenges ------------ None RPGLIKE | -11 -10 -10 -10 -8 --------- Run | Yrd Mat Min Sub Mat Levels Raised 5 | . . 1 1 3 XP Earned 12081 | 4000 1095 500 1450 5036 XP Spent 9550 | 3800 . 1500 1250 3000 Upgrades 15 | 4 . 3 3 5 Utility Slot 4 | 4 . . . . Mass Support 1 | . . . 1 . Inventory Capacity 4 | . . 3 1 . Ranged Accuracy 1 | . . . . 1 TH Resistance % 1 | . . . 1 . TH Damage % 4 | . . . . 4 Protomatter Created 216 | . 128 . 88 . Integrity Restored 417 | . 153 . 264 . Core 392 | . 131 . 261 . Parts 25 | . 22 . 3 . Protomatter Decayed 46 | . 46 . . . Game ------ Seed SuspensionHoverDriveblaster Manual? 0 Play Time 00:15:25 Cumulative 68.6 hours Start 2025.09.04 @ 15:43:39 End 2025.09.04 @ 15:57:13 Sessions 1 Manual Loads 0 Difficulty Adventurer Special Mode Winter2019/RPGLIKE Game No. 16 Rogue 0 Adventurer 16 Explorer 0 Win Type - Total 1 Types 1/0/0/0/0/0/0/0/0/0 Lore% 22 Gallery% 23 Achievement% 42 Wizard Run 0 Options --------- Layout 2 ASCII 0 Keyboard 0 Movement Numpad Keybinds 0 Fullscreen 1 Font 16/SmallcapsGlow Map View 50x49 Zoom Use 22% Tactical HUD 0 Map Filters NONE Filters NONE Steam 1 RUN: cb009d92-707a-4ee9-80c0-612ea0327c7c